Cogmind - Beta 16 @@@ ROGUE MODE // 2025.10.25 @ 16:16:02 Player: celerysam Result: Destroyed by 6T-89W(R) with Subdweller Laser Performance ------------- Evolutions (0) 0 Regions Visited (2) 400 Robots Destroyed (11) 55 Value Destroyed (187) 187 Prototype IDs (0) 0 Alien Tech Used (0) 0 Bonus (0) 0 TOTAL SCORE: 642 Bonus ------- None Cogmind --------- Core Integrity 0/250 Matter 243/300 Energy 95/100 System Corruption 1% Temperature Cool (6) Movement Rolling (115) Ox1 Location -10/Subcaves Parts ------- > --- POWER (1) -------- (None) > --- PROPULSION (2) --- Compact Wheel > --- UTILITY (2) ------ Large Storage Unit Sensor Array > --- WEAPON (2) ------- Small Laser Light Assault Rifle > --- INVENTORY (15) --- Wheel Wheel Wheel Compact Wheel Heat Sink Improved Heat Sink Small Storage Unit Terrain Scanner Transport Network Coupler ECM Suite Assault Rifle Welding Torch Hammer Peak State ------------ > --- POWER ------------ Light Ion Engine > --- PROPULSION ------- Wheel Compact Wheel > --- UTILITY ---------- Large Storage Unit Sensor Array > --- WEAPON ----------- Light Assault Rifle Light Assault Rifle > --- INVENTORY -------- Wheel Wheel Compact Wheel Heat Sink Small Storage Unit Terrain Scanner Transport Network Coupler ECM Suite Small Laser Assault Rifle [Rating: 8] Favorites ----------- Power Light Ion Engine Engine Light Ion Engine Propulsion Aluminum Leg Leg Aluminum Leg Wheel Compact Wheel Utility Sensor Array Device Sensor Array Storage Small Storage Unit Weapon Light Assault Rifle Energy Gun Small Laser Ballistic Gun Light Assault Rifle Build | -11 -10 -10 ------- Run | Yrd Mat Sub Slots Evolved . | . . . Power . | . . . Propulsion . | . . . Utility . | . . . Weapon . | . . . Parts Attached 13 | 6 6 1 Power 2 | 1 1 . Engine 2 | 1 1 . Core . | . . . Reactor . | . . . Propulsion 4 | 2 2 . Treads . | . . . Leg 2 | 2 . . Wheel 2 | . 2 . Hover . | . . . Flight . | . . . Utility 3 | 1 2 . Device 1 | . 1 . Storage 2 | 1 1 . Processor . | . . . Hackware . | . . . Protection . | . . . Artifact . | . . . Weapon 4 | 2 1 1 Energy Gun 1 | . . 1 Energy Cannon . | . . . Ballistic Gun 3 | 2 1 . Ballistic Cannon . | . . . Launcher . | . . . Special Weapon . | . . . Impact Weapon . | . . . Slashing Weapon . | . . . Piercing Weapon . | . . . Special Melee Weapon . | . . . Unidentified Prototypes . | . . . Parts Lost 4 | . 1 3 Power 2 | . 1 1 Propulsion 1 | . . 1 Utility . | . . . Weapon 1 | . . 1 Highest Loss Streak 3 | . 1 3 To Critical Strikes . | . . . Average Backups 8 | 4 8 12 Power . | . . . Propulsion 3 | 3 3 4 Utility 2 | . 2 5 Weapon 2 | . 2 2 Tool/Special . | . . . Unused Backups 13 | . 2 11 Power . | . . . Propulsion 6 | . 2 4 Utility 4 | . . 4 Weapon 2 | . . 2 Tool/Special 1 | . . 1 Average Slot Usage (%) 98 | . 99 93 Engine 13 | . 14 10 Leg 14 | . 16 . Wheel 13 | . 11 24 Device 13 | . 13 14 Storage 14 | . 14 14 Energy Gun 1 | . . 6 Ballistic Gun 27 | . 28 21 Peak Build Rating 8 | 6 8 8 Average Rating 6 | 4 7 7 On Entrance 4 | . 6 8 Avg Prop Armor Cover (%) . | . . . Naked Turns . | . . . Heaviest Build 26 | 12 26 26 Greatest Support 26 | 20 26 26 Greatest Overweight (x) 2 | . . 2 Average Overweight (x) . | . . . Largest Inventory Capacity 15 | 8 15 15 Average Capacity 10 | 6 10 15 Most Carried 14 | 6 13 14 Average Carried 8 | 5 8 12 Final Capacity 15 | 8 15 15 Final Carried 13 | 6 13 13 Class Distribution -------------------- 100% | Mutant Dominant Class ---------------- Mutant | -10/Materials Mutant | -10/Subcaves Resources | -11 -10 -10 ----------- Run | Yrd Mat Sub Matter Collected 355 | 177 77 101 Remotely . | . . . Salvage Created 308 | . 207 101 Parts 20 | . 18 2 Haulers Intercepted 1 | . 1 . Recyclers Shooed 1 | . 1 . Parts Field Recycled . | . . . Retrieved Matter . | . . . Parts Self-Destructed 1 | . . 1 Prevented . | . . . Parts Restored . | . . . Kills | -11 -10 -10 ------- Run | Yrd Mat Sub Combat Hostiles Destroyed 10 | . 8 2 Guns 10 | . 8 2 Classes Destroyed 3 | . 3 . Hauler 1 | . 1 . Swarmer 7 | . 7 . Grunt 3 | . 1 2 Best Kill Streak 3 | . 3 2 Combat Bots Only 3 | . 3 2 Max Kills in Single Turn 1 | . 1 1 Gunslinging . | . . . Exploded . | . . . Melee . | . . . Uniques/NPCs Destroyed . | . . . Combat | -11 -10 -10 -------- Run | Yrd Mat Sub Hostile Shots Fired 87 | . 59 28 Missed 18 | . 15 3 Hits 69 | . 44 25 Projectile 69 | . 44 25 Critical Strikes 1 | . 1 . Damage Taken 759 | . 367 392 Core 253 | . 69 184 Absorbed by Shields . | . . . Core Remaining (%) 100 | 100 . . Volleys Fired 46 | . 30 16 Largest 2 | . 2 2 Hottest 60 | . 40 60 Shots Fired 91 | . 60 31 Gun 91 | . 60 31 Cannon . | . . . Launcher . | . . . Special . | . . . Kinetic 83 | . 60 23 Thermal 8 | . . 8 Explosive . | . . . Electromagnetic . | . . . Robot Hit Streak 25 | . 6 25 Robot Miss Streak 4 | . 4 1 Penetration Max . | . . . Secondary Targets . | . . . Shots Hit Robots 57 | . 29 28 Core Hits 22 | . 13 9 Critical Kills . | . . . Critical Parts Destroyed . | . . . Critical Strikes . | . . . Melee Attacks . | . . . Impact . | . . . Slashing . | . . . Piercing . | . . . Sneak Attacks . | . . . Combat Hostiles . | . . . Follow-up Attacks . | . . . Damage Inflicted 472 | . 231 241 Guns 472 | . 231 241 Cannons . | . . . Explosions . | . . . Melee . | . . . Ramming . | . . . Kinetic 396 | . 231 165 Thermal 76 | . . 76 Explosive . | . . . Electromagnetic . | . . . Impact . | . . . Slashing . | . . . Piercing . | . . . Highest Corruption 1 | . 1 1 Average Corruption 1 | . 1 1 Corruption Purged . | . . . Corruption Blocked . | . . . Effects 3 | . 2 1 Matter Fused 1 | . 1 . Parts Rejected 1 | . . 1 Data Loss (minor) 1 | . 1 . Overload Shots . | . . . Overflow Damage . | . . . Projectiles . | . . . Explosions . | . . . Melee . | . . . Knockbacks . | . . . Impact . | . . . Kinetic . | . . . Secondary . | . . . Self-Inflicted Damage . | . . . Shots . | . . . Rammed . | . . . Targets Rammed . | . . . Kicked . | . . . Crushed . | . . . Highest Temperature 12 | . 12 5 Average Temperature 7 | . 8 5 Received Heat Transfer 210 | . 30 180 Siege Activations . | . . . Martial Activations . | . . . Shielding Activations . | . . . Robots Disrupted . | . . . Combat Hostiles . | . . . Robots Corrupted . | . . . Combat Hostiles . | . . . Parts Fried . | . . . Impact Corruptions . | . . . Robots Melted . | . . . Combat Hostiles . | . . . Parts Melted . | . . . Heat Transferred 175 | . . 175 Parts Sabotaged . | . . . Parts Stolen . | . . . Parts Stripped . | . . . Power Chain Reactions . | . . . Alert | -11 -10 -10 ------- Run | Yrd Mat Sub Maximum Alert Level . | . . . Low Security (%) 100 | 100 100 . Level 1 . | . . . Level 2 . | . . . Level 3 . | . . . Level 4 . | . . . Level 5 . | . . . High Security . | . . . Max Security . | . . . Peak Influence 115 | . 115 . Initial . | . . . Average 44 | . 51 . Influence Increases 289 | . 239 50 Destroy 0b10 Robot/C 200 | . 160 40 Destroy 0b10 Robot/NC 5 | . 5 . Destroy Leader 42 | . 32 10 Successful Hack 12 | . 12 . Lose Combat Pursuer 30 | . 30 . Influence Decreases 279 | . 182 97 Entered New Map 28 | . . 28 Time Decay 212 | . 172 40 Lost Part 39 | . 10 29 Squads Dispatched . | . . . Investigation . | . . . Extermination . | . . . Reinforcement . | . . . Assault . | . . . Garrison . | . . . Intercept . | . . . Searches Triggered . | . . . Construction Impeded . | . . . Haulers Reinforced . | . . . Active Scanning Responses . | . . . Cargo Convoy Interrupts . | . . . Stealth | -11 -10 -10 --------- Run | Yrd Mat Sub Distress Signals 2 | . 2 . Communications Jammed . | . . . Distress Signals . | . . . Times Spotted 18 | . 15 3 Peak Tracking Total 4 | . 4 2 Tactical Retreats 2 | . 2 . Traps | -11 -10 -10 ------- Run | Yrd Mat Sub Traps Triggered 1 | . 1 . Indirectly . | . . . Trap Hack Attempts . | . . . Triggered . | . . . Disarmed . | . . . Reprogrammed . | . . . Reused . | . . . Traps Extracted . | . . . Installed . | . . . Triggered . | . . . Machines | -11 -10 -10 ---------- Run | Yrd Mat Sub Machines Disabled . | . . . Max in Single Turn . | . . . Machines Repaired . | . . . Machines Dismantled . | . . . Machines Sabotaged . | . . . Overloaded Fab Kills . | . . . Hacking | -11 -10 -10 --------- Run | Yrd Mat Sub Machines Accessed 4 | . 4 . Terminals 4 | . 4 . Fabricators . | . . . Repair Stations . | . . . Recycling Units . | . . . Scanalyzers . | . . . Garrison Access . | . . . Total Hacks 5 | . 5 . Successful 4 | . 4 . Failed 1 | . 1 . Catastrophic . | . . . Database Lockouts . | . . . Manual 5 | . 5 . Terminals 5 | . 5 . Fabricators . | . . . Repair Stations . | . . . Recycling Units . | . . . Scanalyzers . | . . . Garrison Access . | . . . Terminal Hacks . | . . . Fabricator Hacks . | . . . Repair Station Hacks . | . . . Recycling Unit Hacks . | . . . Scanalyzer . | . . . Garrison Access Hacks . | . . . Unauthorized Hacks 4 | . 4 . Terminals 4 | . 4 . Botnet 4 | . 4 . Fabricators . | . . . Repair Stations . | . . . Recycling Units . | . . . Scanalyzers . | . . . Garrison Access . | . . . Data Cores Recovered . | . . . Used . | . . . Hacking Detections 2 | . 2 . Full Trace Events . | . . . Feedback Events . | . . . Feedback Blocked . | . . . Robot Schematics Acquired . | . . . Robots Built . | . . . Authchips . | . . . Time . | . . . Total Robot Build Rating . | . . . Part Schematics Acquired . | . . . Parts Built . | . . . Authchips . | . . . Time . | . . . Total Part Build Rating . | . . . Part Studies Acquired . | . . . Parts Repaired . | . . . Time . | . . . Parts Recycled . | . . . Recycled Matter . | . . . Retrieved Matter . | . . . Retrieved Components . | . . . Parts Scanalyzed . | . . . Part Schematics Acquired . | . . . Parts Damaged . | . . . Bothacking | -11 -10 -10 ------------ Run | Yrd Mat Sub Used RIF Installer . | . . . Robots Hacked . | . . . Non-combat . | . . . Combat . | . . . Robot Hacks Applied . | . . . Relay Couplers Released . | . . . Fabnet Peak Effective % . | . . . Robots Rewired . | . . . Allies Hacked . | . . . Hacks Repelled . | . . . Allies | -11 -10 -10 -------- Run | Yrd Mat Sub Total Allies . | . . . Largest Group . | . . . Highest-Rated Group . | . . . Highest-Rated Ally . | . . . Total Orders . | . . . Ally Attacks . | . . . Total Damage . | . . . Kills . | . . . Allies Corrupted . | . . . Allies Melted . | . . . Intel | -11 -10 -10 ------- Run | Yrd Mat Sub Active Infowar (turns) 535 | . 454 81 Sensors 535 | . 454 81 Robot Analysis Total . | . . . Derelict Logs Recovered . | . . . Drone Launches . | . . . Drone Recoveries . | . . . Exploration | -11 -10 -10 ------------- Run | Yrd Mat Sub Turns Passed 619 | 74 464 81 Spaces Moved 432 | 56 347 29 Core 11 | 11 . . Treads . | . . . Legs 202 | 45 157 . Wheels 219 | . 190 29 Hover . | . . . Flight . | . . . Fastest Speed 50 | 50 90 90 Average Speed 103 | 106 103 93 Slowest Speed 120 | 120 120 110 Overloaded Moves . | . . . Propulsion Burnouts . | . . . Robots Hopped . | . . . Potential Cave-ins . | . . . Cave-ins Triggered . | . . . Exploration Rate (%) 21 | 4 55 4 Regions Visited 2 Branch Regions 1 Pre-discovered Areas . | . . . Known Exits Taken . | . . . Unknown Exits Taken 2 | 1 1 . Scrap Searched . | . . . Spaces Dug . | . . . Terrain Destroyed . | . . . Melee . | . . . Projectile . | . . . AOE . | . . . Terrain Rammed . | . . . Walls Destroyed . | . . . Machines Disabled . | . . . Actions | -11 -10 -10 --------- Run | Yrd Mat Sub Total 529 | 67 404 58 Wait 13 | . 4 9 Move 430 | 55 346 29 Hop . | . . . Pick Up 21 | 6 13 2 Fast Attach 6 | 6 . . Attach 4 | . 2 2 Detach . | . . . Swap 4 | . 4 . Drop 5 | . 5 . Fire 46 | . 30 16 Melee . | . . . Ram . | . . . Kick . | . . . Crush . | . . . Escape Stasis . | . . . Rewire . | . . . Trap . | . . . Miscellaneous . | . . . Route ------- -11/Scrapyard -10/Materials (discovered 4 exits: [*Mat x2] / [*Min] / [*Sub]) -10/Subcaves History --------- Turn | Location | Event 5 | -11/Scrapyard | Discovered new exit (range 16) 75 | -11/Scrapyard | Entered Materials 243 | -10/Materials | Discovered new exit (range 16) 305 | -10/Materials | Build established: Mutant 362 | -10/Materials | Discovered new exit (range 16) 487 | -10/Materials | Discovered new exit (range 4) 520 | -10/Materials | Discovered new exit (range 11) 539 | -10/Materials | Entered Subcaves 540 | -10/Subcaves | Approached by a straggling Scientist 555 | -10/Subcaves | A swath of the cavern ceiling suddenly collapsed 597 | -10/Subcaves | Core integrity fell below 50% 617 | -10/Subcaves | Core integrity fell below 20% 620 | -10/Subcaves | Destroyed by 6T-89W(R) with Subdweller Laser Last Messages --------------- all the Subs lurking out here." 00543_ 9S-QV0(c): "Hey, let me tag along and I can get us both out of this nasty situation. At least I think I can... The group I got separated from was talking about a shortcut back to the UFD." A swath of the cavern ceiling suddenly collapses. 00583_ Lgt. Assault Rifle destroyed. 00587_ G-47 Trooper destroyed. 9S-QV0(c): "I think it's somewhere east of here" 00592_ System corrupted: Com. Wheel rejected. 00592_ Subatomizers dissect the Imp. Heat Sink. 00593_ G-34 Mercenary destroyed. 00596_ Acquired 53 matter. 00598_ Acquired Imp. Heat Sink. 00602_ Acquired Com. Wheel. 00604_ Acquired 48 matter. 00608_ Lgt. Ion Engine destroyed. 00610_ Wheel destroyed. Map ----- +----------------------------------------------------+ | ????????????????????????????????????????????????? | | ????????????????????????????????????????????????? | | ????????????????????????????????????????????????? | | ????????????????????????????????????????????????? | | ????????????????????????????????????????????????? | | ????????????????????????????????????????????????? | | ????????????????????????????????????????????????? | | ????????????????????????????????????????????????? | | ??????????????????? ????????????????????????????? | | ?????????????????? ??????????????????????????? | | ?????????????????? ??????????????????????????? | | ?????????????????? #??????????????????????????? | | ?????????????????? #??????#???????????????????? | | ?????????????????? #?????? ?????????????????? | | ?????????????????? #?????# ?????????????????? | | ?????????????????? ?????# #?????????????????? | | ?????????????????# ????# ###???????????????? | | ????????????????## ##### #???????????????? | | ????????????????# ????????????????? | | ???????????????## ?????????????????? | | ??????????????## # #??????????????????? | | ??????????????# ### ###?????????????????? | | ??????????????# ## ###### ##????????????????? | | ??????????????# #?## ;;#"" ?##??????????????? | | ??????????????# #?# R # # #" " #??????? | | ??????????????## ### @## #?????? | | ???????????????## # ## # #?????? | | ????????????????# # ## # #?????? | | ????????????????# ### c# #?##? ### #?????? | | ????????????????###### # #?????? #??????????? | | ???????????????????# ## #???????#??????????? | | ??????????????????# #?????????????????? | | ?????????????????# ##?????????????????? | | ????????????????# ?????????????????? | | ????????????????#### ### ???????????????? | | ???????????????????## ##??# ?????????????? | | ????????????????????# #????? #???????????? | | ????????????????????# ??????# ##???????????? | | ????????????????????# ????????#####????????????? | | ????????????????????## ?????????????????????????? | | ?????????????????????##?????????????????????????? | | ????????????????????????????????????????????????? | | ????????????????????????????????????????????????? | | ????????????????????????????????????????????????? | | ????????????????????????????????????????????????? | | ????????????????????????????????????????????????? | | ????????????????????????????????????????????????? | | ????????????????????????????????????????????????? | | ????????????????????????????????????????????????? | | ????????????????????????????????????????????????? | +----------------------------------------------------+ Best States ------------- Heat Dissipation 25 Energy Generation 10 Energy Capacity 250 Matter Stores 243 Matter Capacity 300 Sight Range 16 Robot Scan Range 14 Terrain Scan Density 10 Evasion (%) 55 Item Schematics ----------------- None Robot Schematics ------------------ None Fabricated ------------ Nothing Repaired ---------- Nothing Studied --------- None Alien Tech Used ----------------- None Achievements -------------- None Challenges ------------ None Game ------ Seed GammaCoolantTelecube Manual? 0 Play Time 00:07:23 Cumulative 272.1 hours Start 2025.10.25 @ 16:05:12 End 2025.10.25 @ 16:16:02 Sessions 1 Manual Loads 0 Difficulty Rogue Special Mode None Game No. 430 Rogue 430 Adventurer 0 Explorer 0 Win Type - Total 1 Types 1/0/0/0/0/0/0/0/0/0 Lore% 64 Gallery% 62 Achievement% 25 Wizard Run 0 Options --------- Layout 1 ASCII 0 Keyboard 0 Movement Mouse Keybinds 0 Fullscreen 2 Font 24/Smallcaps Map View 50x35 Zoom Use 0% Tactical HUD 1 Map Filters NONE Filters NONE Steam 1 RUN: 5f128c69-6a09-4e64-951c-3c51029405c1